Submission Date;Quota Year;Product Type;Category;Supplier;Code;Consignment;Importer;Quantity;Licensed;Value
8/5/2018;2018;Aluminium;7601202090;United Arab Emirates;AE;United Arab Emirates;13eb6fa1-3e7a-4871-8554;191000;191000;407834
8/5/2018;2018;Aluminium;7604299090;Turkey;TR;Turkey;8012fa9c-aac0-4fa9-af48;80000;80000;252000
8/5/2018;2018;Aluminium;7604109090;Turkey;TR;Turkey;4653;20000;20000;70000
8/5/2018;2018;Aluminium;7601100000;Mozambique;MZ;Mozambique;4406;30000000;30000000;6,1575E+11
9/5/2018;2018;Aluminium;7607111110;India;IN;India;95f0ccfe-4301-427d-8fee;20000;20000;54200
9/5/2018;2018;Aluminium;7607111110;Turkey;TR;Turkey;95f0ccfe-4301-427d-8fee;220000;220000;683200
9/5/2018;2018;Aluminium;7606119190;Serbia;RS;Serbia;4425;21000;21000;51762
10/5/2018;2018;Aluminium;7601202090;South Korea;KR;South Korea;13eb6fa1-3e7a-4871-8554;42135;42135;83046
10/5/2018;2018;Aluminium;7607111110;Turkey;TR;Turkey;95f0ccfe-4301-427d-8fee;69000;69000;220800
10/5/2018;2018;Aluminium;7601202090;Qatar;QA;Qatar;b95adacc-f965-4ea4-a92d;190777;190777;379921
10/5/2018;2018;Aluminium;7604210090;Turkey;TR;Turkey;4358;35000;35000;121818
10/5/2018;2018;Aluminium;7601202090;South Korea;KR;South Korea;2a13b44a-2cec-49e1-9226;145566;145566;333263
10/5/2018;2018;Aluminium;7607111993;China;CN;China;4638;26216;26216;66978
10/5/2018;2018;Aluminium;7607119087;China;CN;China;4638;16675;16675;41928
11/5/2018;2018;Aluminium;7604299090;Turkey;TR;Turkey;489c7c16-be5b-4995-9e11;8164;8164;25373
11/5/2018;2018;Aluminium;7601202090;United Arab Emirates;AE;United Arab Emirates;4406;458754;458754;857047
11/5/2018;2018;Aluminium;7606119190;Turkey;TR;Turkey;4425;80000;80000;217600
11/5/2018;2018;Aluminium;7606119390;Turkey;TR;Turkey;4425;30000;30000;81600
11/5/2018;2018;Aluminium;7607111910;Turkey;TR;Turkey;4425;9306;9306;28384
11/5/2018;2018;Aluminium;7607111910;Turkey;TR;Turkey;4425;30000;30000;108000
11/5/2018;2018;Aluminium;7604299090;Turkey;TR;Turkey;4358;3473;3473;12216
11/5/2018;2018;Aluminium;7601100000;United Arab Emirates;AE;China;4406;9222011;9222011;1,64891E+14
11/5/2018;2018;Aluminium;7601100000;India;IN;China;4406;3023120;3023120;5405401
11/5/2018;2018;Aluminium;7601202090;Turkey;TR;Turkey;822860bf-a82c-4a25-85f2;16000;16000;39157
11/5/2018;2018;Aluminium;7601202090;South Korea;KR;South Korea;d4c7cf12-a54e-4dad-b04e;21479;21479;47850
11/5/2018;2018;Aluminium;7601202090;Turkey;TR;Turkey;2a13b44a-2cec-49e1-9226;100000;100000;240000
11/5/2018;2018;Aluminium;7601202090;India;IN;India;b95adacc-f965-4ea4-a92d;2600000;2600000;5800000
14/5/2018;2018;Aluminium;7601202090;Turkey;TR;Turkey;c9fdef34-7d90-43cf-b1af;23840;23840;56025
14/5/2018;2018;Aluminium;7605190090;India;IN;India;21e75be3-2feb-4136-9188;4000;4000;16920
14/5/2018;2018;Aluminium;7601100000;Russian Federation;RU;Netherlands Antilles;002b6b2b-3e5e-49f1-ab0b;149058;149058;268304
15/5/2018;2018;Aluminium;7605110000;Turkey;TR;Turkey;4554;20272;20272;47140
15/5/2018;2018;Aluminium;7605110000;Turkey;TR;Turkey;4554;300000;300000;720000
15/5/2018;2018;Aluminium;7606129290;China;CN;China;4638;33043;33043;75350
15/5/2018;2018;Aluminium;7601202090;Turkey;TR;Turkey;22c5a39f-4df0-4f11-8b52;27000;27000;60832
16/5/2018;2018;Aluminium;7604299090;Turkey;TR;Turkey;29390636-5864-4cd0-96ab;7753;7753;27628
16/5/2018;2018;Aluminium;7601202090;India;IN;India;35;304980;304980;583881
17/5/2018;2018;Aluminium;7601100000;Kazakhstan;KZ;Kazakhstan;002b6b2b-3e5e-49f1-ab0b;139929;139929;276539
17/5/2018;2018;Aluminium;7604109090;China;CN;China;bfd0373c-11c9-4166-9c82;15854;15854;48276
18/5/2018;2018;Aluminium;7601202090;Turkey;TR;Turkey;822860bf-a82c-4a25-85f2;37000;37000;86325
18/5/2018;2018;Aluminium;7604299090;Albania;AL;Albania;35;33672;33672;108424
21/5/2018;2018;Aluminium;7606129290;China;CN;China;4638;146230;146230;279097
21/5/2018;2018;Aluminium;7601100000;Kazakhstan;KZ;Kazakhstan;002b6b2b-3e5e-49f1-ab0b;50508;50508;101825
21/5/2018;2018;Aluminium;7601208000;Egypt;EG;Egypt;1955;50000;50000;90381
21/5/2018;2018;Aluminium;7601100000;Russian Federation;RU;Russian Federation;35;275452;275452;492483
21/5/2018;2018;Aluminium;7601100000;Russian Federation;RU;Russian Federation;35;5265620;5265620;969816
21/5/2018;2018;Aluminium;7606129290;China;CN;China;3136;40540;40540;90000
21/5/2018;2018;Aluminium;7616999099;China;CN;China;e1b55f65-fe50-447a-9fb6;6875;6875;22112
21/5/2018;2018;Aluminium;7601202090;Vietnam;VN;Vietnam;b95adacc-f965-4ea4-a92d;422678;422678;899847
23/5/2018;2018;Aluminium;7616999099;Turkey;TR;Turkey;afd6b482-c0f5-4ed0-be7f;3420;3420;22514
23/5/2018;2018;Aluminium;7604109090;Turkey;TR;Turkey;afd6b482-c0f5-4ed0-be7f;18680;18680;60541
23/5/2018;2018;Aluminium;7601100000;India;IN;Singapore;4406;1867795;1867795;3922369
23/5/2018;2018;Aluminium;7601100000;Oman;OM;Singapore;4406;5211567;5211567;1,09443E+13
23/5/2018;2018;Aluminium;7616991099;China;CN;China;4063;4475;4475;18827
24/5/2018;2018;Aluminium;7604291090;China;CN;China;b2a75ea5-8657-4954-89e8;3592;3592;17615
24/5/2018;2018;Aluminium;7616999099;Turkey;TR;Turkey;4375;10533;10533;53971
24/5/2018;2018;Aluminium;7606129990;China;CN;China;a107f890-0275-4b1f-8f21;4107;4107;7528
25/5/2018;2018;Aluminium;7607111993;China;CN;China;4638;29330;29330;77732
25/5/2018;2018;Aluminium;7606122090;China;CN;China;6a36ec48-5c1e-428a-9319;3282;3282;5895
25/5/2018;2018;Aluminium;7604299090;Turkey;TR;Turkey;ca33b13f-1efa-4805-aba4;9047;9047;39859
25/5/2018;2018;Aluminium;7604299090;China;CN;China;bfd0373c-11c9-4166-9c82;14009;14009;36549
29/5/2018;2018;Aluminium;7607209000;Turkey;TR;Turkey;4554;16880;16880;55366
29/5/2018;2018;Aluminium;7607191090;China;CN;China;df19b54f-0d56-4942-999a;39541;39541;101290
29/5/2018;2018;Aluminium;7604299090;China;CN;China;32f797a7-40ce-4fd1-92da;8993;8993;26084
29/5/2018;2018;Aluminium;7601100000;Russian Federation;RU;Russian Federation;35;549633;549633;1154229
29/5/2018;2018;Aluminium;7601100000;Russian Federation;RU;Russian Federation;35;298776;298776;631227
29/5/2018;2018;Aluminium;7601202090;Turkey;TR;Turkey;822860bf-a82c-4a25-85f2;45000;45000;106410
30/5/2018;2018;Aluminium;7607209000;Turkey;TR;Turkey;4554;6481;6481;20950
30/5/2018;2018;Aluminium;7606119390;China;CN;China;bbd52968-3ef5-4129-baa5;4300;4300;7300
30/5/2018;2018;Aluminium;7601202090;United Arab Emirates;AE;United Arab Emirates;76815dd5-7e2f-450e-b9d5;705074;705074;1501586
30/5/2018;2018;Aluminium;7607111940;Turkey;TR;Turkey;375821c0-f17d-485e-9d25;5000;5000;17800
30/5/2018;2018;Aluminium;7604109090;Turkey;TR;Turkey;aef74816-c8f8-4739-8712;3420;3420;13170
31/5/2018;2018;Aluminium;7606129290;China;CN;China;d4c7cf12-a54e-4dad-b04e;15690;15690;20842
31/5/2018;2018;Aluminium;7601202090;Russian Federation;RU;Russian Federation;d4c7cf12-a54e-4dad-b04e;267728;267728;541881
31/5/2018;2018;Aluminium;7604210090;Turkey;TR;Turkey;4358;60138;60138;205300
31/5/2018;2018;Aluminium;7601202090;Russian Federation;RU;Russian Federation;4e8041c5-9a20-4da3-850b;542716;542716;1025229
31/5/2018;2018;Aluminium;7606119190;China;CN;China;4638;64661;64661;135007
1/6/2018;2018;Aluminium;7601100000;Russian Federation;RU;Russian Federation;4406;393900;393900;855031
1/6/2018;2018;Aluminium;7601202090;Russian Federation;RU;Russian Federation;4406;1197010;1197010;2626335
1/6/2018;2018;Aluminium;7601208000;Albania;AL;Albania;1955;49318;49318;116126
1/6/2018;2018;Aluminium;7601100000;Oman;OM;Singapore;002b6b2b-3e5e-49f1-ab0b;2094701;2094701;4472799
1/6/2018;2018;Aluminium;7601202090;South Korea;KR;South Korea;2a13b44a-2cec-49e1-9226;21830;21830;48588
4/6/2018;2018;Aluminium;7604109090;Turkey;TR;Turkey;afd6b482-c0f5-4ed0-be7f;4394;4394;18874
4/6/2018;2018;Aluminium;7601202090;Turkey;TR;Turkey;35;306002;306002;658525
4/6/2018;2018;Aluminium;7606129990;Turkey;TR;Turkey;5fa67e9a-765c-4026-9778;22203;22203;58838
4/6/2018;2018;Aluminium;7607119087;China;CN;China;96da721c-815c-4d6f-81e2;16681;16681;48476
4/6/2018;2018;Aluminium;7604299090;China;CN;China;32f797a7-40ce-4fd1-92da;21545;21545;60100
4/6/2018;2018;Aluminium;7601202090;Turkey;TR;Turkey;22c5a39f-4df0-4f11-8b52;26000;26000;58857
4/6/2018;2018;Aluminium;7604299090;Turkey;TR;Turkey;35;3418;3418;12797
7/6/2018;2018;Aluminium;7601202090;Russian Federation;RU;Russian Federation;4406;3665350;3665350;7986102
7/6/2018;2018;Aluminium;7601100000;Russian Federation;RU;Russian Federation;4406;796870;796870;1720767
7/6/2018;2018;Aluminium;7607119087;China;CN;China;96da721c-815c-4d6f-81e2;23428;23428;72036
7/6/2018;2018;Aluminium;7607111930;China;CN;China;e6d2b797-f86f-42ab-b263;19363;19363;52064
8/6/2018;2018;Aluminium;7601202090;Turkey;TR;Turkey;35;306002;306002;658525
11/6/2018;2018;Aluminium;7601202090;Turkey;TR;Turkey;822860bf-a82c-4a25-85f2;18500;18500;43182
11/6/2018;2018;Aluminium;7605110000;Turkey;TR;Turkey;4554;610000;610000;1476200
11/6/2018;2018;Aluminium;7601100000;Russian Federation;RU;Russian Federation;35;499480;499480;1101723
11/6/2018;2018;Aluminium;7601100000;Kazakhstan;KZ;Kazakhstan;002b6b2b-3e5e-49f1-ab0b;149444;149444;310544
12/6/2018;2018;Aluminium;7604299090;China;CN;China;bfd0373c-11c9-4166-9c82;14780;14780;39550
12/6/2018;2018;Aluminium;7601100000;Kazakhstan;KZ;Kazakhstan;4554;1003535;1003535;1884046
12/6/2018;2018;Aluminium;7601202090;India;IN;India;35;304980;304980;664261
13/6/2018;2018;Aluminium;7601100000;Russian Federation;RU;Russian Federation;4406;3570000;3570000;7848210
13/6/2018;2018;Aluminium;7601202090;Russian Federation;RU;Russian Federation;4406;6930000;6930000;1,3046E+14
13/6/2018;2018;Aluminium;7601100000;Russian Federation;RU;Netherlands Antilles;b95adacc-f965-4ea4-a92d;349615;349615;699230
14/6/2018;2018;Aluminium;7607201000;Turkey;TR;Turkey;54f9edce-3155-4cad-b03e;2538;2538;9139
14/6/2018;2018;Aluminium;7601202090;South Korea;KR;South Korea;2a13b44a-2cec-49e1-9226;125628;125628;280650
14/6/2018;2018;Aluminium;7601202090;India;IN;India;d4c7cf12-a54e-4dad-b04e;25400;25400;56376
14/6/2018;2018;Aluminium;7607111993;China;CN;China;4638;129897;129897;375000
14/6/2018;2018;Aluminium;7606920090;Turkey;TR;Turkey;bbcf54fb-061e-4142-a8d0;22000;22000;59070
14/6/2018;2018;Aluminium;7616999099;China;CN;China;c64b55c3-0c9c-4975-a321;10856;10856;83565
15/6/2018;2018;Aluminium;7601202090;Turkey;TR;Turkey;22c5a39f-4df0-4f11-8b52;27000;27000;60736
15/6/2018;2018;Aluminium;7609000090;Turkey;TR;Turkey;29390636-5864-4cd0-96ab;13026;13026;45851
15/6/2018;2018;Aluminium;7616999099;Turkey;TR;Turkey;26f9f13d-f047-461d-8415;3155;3155;14368
15/6/2018;2018;Aluminium;7601208000;Ghana;GH;Ghana;1955;24628;24628;48941
15/6/2018;2018;Aluminium;7606122090;Turkey;TR;Turkey;4554;4805;4805;15760
15/6/2018;2018;Aluminium;7607209000;Turkey;TR;Turkey;4554;4367;4367;14338
15/6/2018;2018;Aluminium;7607111993;China;CN;China;4638;16063;16063;41678
18/6/2018;2018;Aluminium;7601202090;United Arab Emirates;AE;United Arab Emirates;13eb6fa1-3e7a-4871-8554;194122;194122;432000
18/6/2018;2018;Aluminium;7604109090;Turkey;TR;Turkey;afd6b482-c0f5-4ed0-be7f;17696;17696;60646
19/6/2018;2018;Aluminium;7601208000;Vietnam;VN;Vietnam;1955;49565;49565;88621
19/6/2018;2018;Aluminium;7601208000;Albania;AL;Albania;1955;25000;25000;58865
19/6/2018;2018;Aluminium;7606119990;China;CN;China;1955;103369;103369;238601
19/6/2018;2018;Aluminium;7601208000;United Arab Emirates;AE;United Arab Emirates;1955;68580;68580;132204
19/6/2018;2018;Aluminium;7604299090;Albania;AL;Albania;35;41245;41245;134985
19/6/2018;2018;Aluminium;7604299090;Albania;AL;Albania;35;20191;20191;65335
19/6/2018;2018;Aluminium;7604299090;Serbia;RS;Serbia;35;23228;23228;89400
20/6/2018;2018;Aluminium;7604101000;Serbia;RS;Serbia;5f234db8-fc7e-4a13-8028;7188;7188;26140
20/6/2018;2018;Aluminium;7601202090;Turkey;TR;Turkey;822860bf-a82c-4a25-85f2;16500;16500;37766
20/6/2018;2018;Aluminium;7609000090;China;CN;China;31817fb1-2879-4251-92e9;4466;4466;34635
20/6/2018;2018;Aluminium;7604210090;Turkey;TR;Turkey;4358;52240;52240;168610
20/6/2018;2018;Aluminium;7604109090;Albania;AL;Albania;fd98dc00-e229-4770-8f75;4277;4277;19431
21/6/2018;2018;Aluminium;7601202090;Turkey;TR;Turkey;35;305770;305770;699880
21/6/2018;2018;Aluminium;7607209000;Turkey;TR;Turkey;4554;7530;7530;24698
21/6/2018;2018;Aluminium;7604299090;Serbia;RS;Serbia;35;30000;30000;116435
21/6/2018;2018;Aluminium;7604299090;Albania;AL;Albania;35;60000;60000;195397
21/6/2018;2018;Aluminium;7601208000;Vietnam;VN;Vietnam;1955;49147;49147;87400
21/6/2018;2018;Aluminium;7616999099;China;CN;China;7af5a9ec-57ca-4e11-9cbd;9368;9368;28461
22/6/2018;2018;Aluminium;7606119190;Turkey;TR;Turkey;4425;14735;14735;140262
22/6/2018;2018;Aluminium;7606119390;Turkey;TR;Turkey;4425;7466;7466;16708
25/6/2018;2018;Aluminium;7601202090;Turkey;TR;Turkey;822860bf-a82c-4a25-85f2;41000;41000;91548
26/6/2018;2018;Aluminium;7607111110;Turkey;TR;Turkey;95f0ccfe-4301-427d-8fee;66000;66000;204600
26/6/2018;2018;Aluminium;7604299090;Bosnia and Herzegovina;BA;Bosnia and Herzegovina;35;37739;37739;152776
26/6/2018;2018;Aluminium;7604299090;China;CN;China;32f797a7-40ce-4fd1-92da;17625;17625;45005
27/6/2018;2018;Aluminium;7616999099;China;CN;China;05560c63-5f1d-4187-8dc0;23577;23577;71800
27/6/2018;2018;Aluminium;7601208000;United Arab Emirates;AE;United Arab Emirates;1955;52170;52170;100471
27/6/2018;2018;Aluminium;7607209000;Turkey;TR;Turkey;4554;9547;9547;31314
27/6/2018;2018;Aluminium;7607111993;China;CN;China;4638;264237;264237;763800
27/6/2018;2018;Aluminium;7601202090;Turkey;TR;Turkey;22c5a39f-4df0-4f11-8b52;27000;27000;60668
28/6/2018;2018;Aluminium;7607191090;China;CN;China;df19b54f-0d56-4942-999a;165557;165557;427998
29/6/2018;2018;Aluminium;7601100000;Russian Federation;RU;Russian Federation;70d8a2f0-6362-4863-a0fc;9128;9128;19616
29/6/2018;2018;Aluminium;7606129990;Turkey;TR;Turkey;27;66000;66000;170940
29/6/2018;2018;Aluminium;7606129290;China;CN;China;4638;642714;642714;1624024
2/7/2018;2018;Aluminium;7604101000;Serbia;RS;Serbia;5f234db8-fc7e-4a13-8028;3435;3435;11296
2/7/2018;2018;Aluminium;7604299090;China;CN;China;bfd0373c-11c9-4166-9c82;16408;16408;45518
3/7/2018;2018;Aluminium;7604210090;Turkey;TR;Turkey;4358;41602;41602;146927
3/7/2018;2018;Aluminium;7606119190;China;CN;China;4425;44140;44140;94901
3/7/2018;2018;Aluminium;7604109090;Turkey;TR;Turkey;afd6b482-c0f5-4ed0-be7f;6404;6404;25702
3/7/2018;2018;Aluminium;7616999099;Turkey;TR;Turkey;46862ead-e97c-49d0-b712;22713;22713;73289
3/7/2018;2018;Aluminium;7616999099;Turkey;TR;Turkey;afd6b482-c0f5-4ed0-be7f;3448;3448;22139
4/7/2018;2018;Aluminium;7604299090;Turkey;TR;Turkey;a0eb6135-b8ae-4bcf-a2b6;10126;10126;33780
4/7/2018;2018;Aluminium;7601202090;United Arab Emirates;AE;United Arab Emirates;76815dd5-7e2f-450e-b9d5;666165;666165;1442348
4/7/2018;2018;Aluminium;7604291090;United States of America;US;United States of America;39b903c7-8833-40ea-9b2a;4936;4936;48815
5/7/2018;2018;Aluminium;7608208990;China;CN;China;2363;5940;5940;19986
5/7/2018;2018;Aluminium;7601202090;United Arab Emirates;AE;United Arab Emirates;13eb6fa1-3e7a-4871-8554;194158;194158;442069
5/7/2018;2018;Aluminium;7616999099;Turkey;TR;Turkey;4713;11545;11545;60346
5/7/2018;2018;Aluminium;7607111993;China;CN;China;007303b8-7a95-4620-ac8d;12908;12908;37105
6/7/2018;2018;Aluminium;7606119990;China;CN;China;f6c1ee79-b868-4071-9a78;4673;4673;11939
9/7/2018;2018;Aluminium;7604299090;Turkey;TR;Turkey;489c7c16-be5b-4995-9e11;6450;6450;19782
9/7/2018;2018;Aluminium;7601202090;Turkey;TR;Turkey;822860bf-a82c-4a25-85f2;55000;55000;120485
9/7/2018;2018;Aluminium;7601202090;Turkey;TR;Turkey;b95adacc-f965-4ea4-a92d;102000;102000;224400
10/7/2018;2018;Aluminium;7605110000;Turkey;TR;Turkey;4539;22281;22281;53116
10/7/2018;2018;Aluminium;7601100000;Kazakhstan;KZ;Kazakhstan;002b6b2b-3e5e-49f1-ab0b;49914;49914;92925
10/7/2018;2018;Aluminium;7601202090;Turkey;TR;Turkey;22c5a39f-4df0-4f11-8b52;27000;27000;57088
10/7/2018;2018;Aluminium;7601202090;Turkey;TR;Turkey;b95adacc-f965-4ea4-a92d;305934;305934;673054
10/7/2018;2018;Aluminium;7601202090;Russian Federation;RU;Russian Federation;2a13b44a-2cec-49e1-9226;271805;271805;599380
11/7/2018;2018;Aluminium;7604299090;China;CN;China;bfd0373c-11c9-4166-9c82;17506;17506;48290
11/7/2018;2018;Aluminium;7601100000;Russian Federation;RU;Russian Federation;002b6b2b-3e5e-49f1-ab0b;2108495;2108495;4243214
11/7/2018;2018;Aluminium;7607209000;Turkey;TR;Turkey;4539;5342;5342;18893
11/7/2018;2018;Aluminium;7601202090;Turkey;TR;Turkey;653c3177-3940-4ba4-9df1;22720;22720;53257
11/7/2018;2018;Aluminium;7604291090;United States of America;US;United States of America;39b903c7-8833-40ea-9b2a;6483;6483;98363
11/7/2018;2018;Aluminium;7601100000;Russian Federation;RU;Russian Federation;35;669941;669941;1331281
11/7/2018;2018;Aluminium;7606122090;Turkey;TR;Turkey;4554;3330;3330;11055
11/7/2018;2018;Aluminium;7607209000;Turkey;TR;Turkey;4554;14575;14575;48288
11/7/2018;2018;Aluminium;7604210090;Turkey;TR;Turkey;9c7bafb5-c2f8-46f2-9301;3245;3245;10541
11/7/2018;2018;Aluminium;7601208000;China;CN;China;13e242ef-91c8-4421-99a2;23378;23378;68531
12/7/2018;2018;Aluminium;7601202090;United Arab Emirates;AE;United Arab Emirates;4406;803718;803718;1728236
12/7/2018;2018;Aluminium;7601100000;Bahrain;BH;Bahrain;4406;532996;532996;1,07401E+14
16/7/2018;2018;Aluminium;7616991099;Tunisia;TN;Tunisia;e5430cd2-38b5-4b60-b76e;35378;35378;127993
16/7/2018;2018;Aluminium;7604291090;United States of America;US;United States of America;39b903c7-8833-40ea-9b2a;9753;9753;411473
16/7/2018;2018;Aluminium;7601100000;Kazakhstan;KZ;Kazakhstan;002b6b2b-3e5e-49f1-ab0b;150425;150425;315694
17/7/2018;2018;Aluminium;7604299030;China;CN;China;4602;10518;10518;29866
17/7/2018;2018;Aluminium;7616999099;Bosnia and Herzegovina;BA;Bosnia and Herzegovina;05560c63-5f1d-4187-8dc0;5277;5277;20845
17/7/2018;2018;Aluminium;7606119190;Turkey;TR;Turkey;8ad73341-0c56-468c-a1d2;60000;60000;154800
17/7/2018;2018;Aluminium;7606119190;Turkey;TR;Turkey;5fa67e9a-765c-4026-9778;20000;20000;51200
18/7/2018;2018;Aluminium;7601202090;Vietnam;VN;Vietnam;b95adacc-f965-4ea4-a92d;1989580;1989580;4265938
18/7/2018;2018;Aluminium;7607209000;Turkey;TR;Turkey;4554;2824;2824;10858
18/7/2018;2018;Aluminium;7616999099;China;CN;China;a613e52a-cbaa-4fdd-8662;4183;4183;18942
18/7/2018;2018;Aluminium;7601100000;Montenegro;ME;Montenegro;4406;700000;700000;1311394
19/7/2018;2018;Aluminium;7616999099;Bosnia and Herzegovina;BA;Bosnia and Herzegovina;40;3664;3664;16089
19/7/2018;2018;Aluminium;7607209000;Turkey;TR;Turkey;4554;2657;2657;8635
23/7/2018;2018;Aluminium;7601202090;South Korea;KR;South Korea;2a13b44a-2cec-49e1-9226;701452;701452;1601885
23/7/2018;2018;Aluminium;7604299090;Turkey;TR;Turkey;35;8155;8155;28535
23/7/2018;2018;Aluminium;7607119087;China;CN;China;4638;33732;33732;92366
23/7/2018;2018;Aluminium;7607111993;China;CN;China;4638;105438;105438;324130
23/7/2018;2018;Aluminium;7607191090;China;CN;China;df19b54f-0d56-4942-999a;18826;18826;46652
23/7/2018;2018;Aluminium;7616999099;Bosnia and Herzegovina;BA;Bosnia and Herzegovina;424b932c-7b1b-456b-97c3;2882;2882;11918
23/7/2018;2018;Aluminium;7601202090;Turkey;TR;Turkey;822860bf-a82c-4a25-85f2;17500;17500;37112
23/7/2018;2018;Aluminium;7601202090;Turkey;TR;Turkey;653c3177-3940-4ba4-9df1;25000;25000;56376
25/7/2018;2018;Aluminium;7607111993;China;CN;China;4638;37373;37373;103097
25/7/2018;2018;Aluminium;7607111993;China;CN;China;4638;140481;140481;419692
25/7/2018;2018;Aluminium;7604109090;Turkey;TR;Turkey;afd6b482-c0f5-4ed0-be7f;8429;8429;30068
25/7/2018;2018;Aluminium;7616991099;China;CN;China;33cbb3ea-be89-4c65-ab33;5396;5396;17339
26/7/2018;2018;Aluminium;7601202090;United Arab Emirates;AE;United Arab Emirates;76815dd5-7e2f-450e-b9d5;663730;663730;1136969
26/7/2018;2018;Aluminium;7608208990;Turkey;TR;Turkey;a44a1f3c-828b-4b30-bb42;3895;3895;12342
27/7/2018;2018;Aluminium;7601202090;Turkey;TR;Turkey;653c3177-3940-4ba4-9df1;25000;25000;55341
27/7/2018;2018;Aluminium;7607111993;China;CN;China;4638;542940;542940;1468822
27/7/2018;2018;Aluminium;7616999099;China;CN;China;61842fd9-da11-43fe-9fe6;4149;4149;20851
27/7/2018;2018;Aluminium;7607111110;Turkey;TR;Turkey;95f0ccfe-4301-427d-8fee;154000;154000;467390
27/7/2018;2018;Aluminium;7616999099;China;CN;China;c64b55c3-0c9c-4975-a321;3724;3724;29818
27/7/2018;2018;Aluminium;7606122090;Turkey;TR;Turkey;4554;3436;3436;11167
30/7/2018;2018;Aluminium;7607209000;Turkey;TR;Turkey;4554;5044;5044;19133
30/7/2018;2018;Aluminium;7604109090;Turkey;TR;Turkey;afd6b482-c0f5-4ed0-be7f;5326;5326;16731
30/7/2018;2018;Aluminium;7604299090;China;CN;China;bfd0373c-11c9-4166-9c82;16818;16818;44944
30/7/2018;2018;Aluminium;7606122090;Turkey;TR;Turkey;27;13200;13200;43428
30/7/2018;2018;Aluminium;7606129990;Turkey;TR;Turkey;27;66000;66000;165990
31/7/2018;2018;Aluminium;7606910090;Turkey;TR;Turkey;4425;8864;8864;25016
31/7/2018;2018;Aluminium;7601202090;Egypt;EG;Egypt;35;341381;341381;796613
1/8/2018;2018;Aluminium;7606129290;China;CN;China;4638;471336;471336;1060728
1/8/2018;2018;Aluminium;7601100000;Kazakhstan;KZ;Kazakhstan;002b6b2b-3e5e-49f1-ab0b;51991;51991;105256
1/8/2018;2018;Aluminium;7606920090;Turkey;TR;Turkey;96da721c-815c-4d6f-81e2;5802;5802;21870
1/8/2018;2018;Aluminium;7607111993;Turkey;TR;Turkey;91ab8476-829c-4e9e-ac53;36062;36062;106780
2/8/2018;2018;Aluminium;7604299090;China;CN;China;9cd0124f-dcc8-4472-be0e;11935;11935;34552
2/8/2018;2018;Aluminium;7606920090;Turkey;TR;Turkey;bbcf54fb-061e-4142-a8d0;22000;22000;58740
2/8/2018;2018;Aluminium;7604299090;Turkey;TR;Turkey;a0eb6135-b8ae-4bcf-a2b6;5993;5993;19881
2/8/2018;2018;Aluminium;7601202090;Russian Federation;RU;Russian Federation;d4c7cf12-a54e-4dad-b04e;539526;539526;1133005
2/8/2018;2018;Aluminium;7605290090;India;IN;India;6df23792-cf1a-44ae-a3fe;9301;9301;36848
3/8/2018;2018;Aluminium;7604299090;China;CN;China;4530;6200;6200;16509
3/8/2018;2018;Aluminium;7605110000;Turkey;TR;Turkey;4539;201356;201356;402994
6/8/2018;2018;Aluminium;7601202090;Turkey;TR;Turkey;91cfb80f-51f7-4fd7-bc52;48000;48000;104203
6/8/2018;2018;Aluminium;7604299030;China;CN;China;4602;9468;9468;28339
7/8/2018;2018;Aluminium;7606119190;China;CN;China;4638;16584;16584;39890
7/8/2018;2018;Aluminium;7607111993;Turkey;TR;Turkey;91ab8476-829c-4e9e-ac53;40000;40000;115800
8/8/2018;2018;Aluminium;7601208000;Albania;AL;Albania;1955;48261;48261;81363
8/8/2018;2018;Aluminium;7616991099;China;CN;China;33cbb3ea-be89-4c65-ab33;5486;5486;22369
9/8/2018;2018;Aluminium;7605110000;Turkey;TR;Turkey;4554;400000;400000;866000
9/8/2018;2018;Aluminium;7607209000;Turkey;TR;Turkey;4554;9332;9332;31334
9/8/2018;2018;Aluminium;7601202090;United Arab Emirates;AE;United Arab Emirates;13eb6fa1-3e7a-4871-8554;340626;340626;721434
10/8/2018;2018;Aluminium;7616999099;China;CN;China;4579;3810;3810;20600
10/8/2018;2018;Aluminium;7601202090;Turkey;TR;Turkey;653c3177-3940-4ba4-9df1;24290;24290;52469
13/8/2018;2018;Aluminium;7604101000;Serbia;RS;Serbia;5f234db8-fc7e-4a13-8028;6975;6975;25700
14/8/2018;2018;Aluminium;7604299090;Turkey;TR;Turkey;302e4a04-f90b-45a6-b2c1;6262;6262;20038
14/8/2018;2018;Aluminium;7605210000;China;CN;China;ed94e528-ac88-4087-a423;4900;4900;16051
17/8/2018;2018;Aluminium;7601100000;Russian Federation;RU;Russian Federation;002b6b2b-3e5e-49f1-ab0b;1415414;1415414;2677084
20/8/2018;2018;Aluminium;7601100000;Russian Federation;RU;Russian Federation;b95adacc-f965-4ea4-a92d;67099;67099;128675
20/8/2018;2018;Aluminium;7601100000;Russian Federation;RU;Russian Federation;35;325178;325178;637648
20/8/2018;2018;Aluminium;7606122090;Turkey;TR;Turkey;4554;4953;4953;16171
20/8/2018;2018;Aluminium;7607191090;China;CN;China;df19b54f-0d56-4942-999a;86703;86703;226391
20/8/2018;2018;Aluminium;7607209000;Turkey;TR;Turkey;4554;7195;7195;23599
21/8/2018;2018;Aluminium;7616999099;Turkey;TR;Turkey;4713;9491;9491;47855
21/8/2018;2018;Aluminium;7606119190;China;CN;China;4425;21694;21694;45774
22/8/2018;2018;Aluminium;7601100000;Kazakhstan;KZ;Russian Federation;4406;2237362;2237362;4474724
22/8/2018;2018;Aluminium;7604210090;Turkey;TR;Turkey;a51fbbf1-25ba-4a52-a129;4122;4122;14040
23/8/2018;2018;Aluminium;7606910090;China;CN;China;4425;3442;3442;7262
23/8/2018;2018;Aluminium;7604299090;China;CN;China;a107f890-0275-4b1f-8f21;11177;11177;29687
27/8/2018;2018;Aluminium;7616999099;China;CN;China;a613e52a-cbaa-4fdd-8662;6091;6091;18718
28/8/2018;2018;Aluminium;7606111090;China;CN;China;21131510-69a2-4bbb-8d04;29570;29570;59403
28/8/2018;2018;Aluminium;7601202090;United Arab Emirates;AE;United Arab Emirates;76815dd5-7e2f-450e-b9d5;690567;690567;1444189
29/8/2018;2018;Aluminium;7601202090;Qatar;QA;Qatar;b95adacc-f965-4ea4-a92d;189816;189816;386068
30/8/2018;2018;Aluminium;7601202090;Turkey;TR;Turkey;822860bf-a82c-4a25-85f2;17000;17000;36755
30/8/2018;2018;Aluminium;7601208000;Egypt;EG;Egypt;1955;50000;50000;90382
30/8/2018;2018;Aluminium;7605110000;Turkey;TR;Turkey;837e542e-afad-4a2f-9118;22286;22286;47355
31/8/2018;2018;Aluminium;7607111993;China;CN;China;4638;64123;64123;194102
31/8/2018;2018;Aluminium;7607111993;China;CN;China;4638;78533;78533;243589
31/8/2018;2018;Aluminium;7607111993;China;CN;China;4638;459741;459741;1115832
31/8/2018;2018;Aluminium;7601202090;United Arab Emirates;AE;United Arab Emirates;4406;802474;802474;1608355
31/8/2018;2018;Aluminium;7604299090;China;CN;China;32f797a7-40ce-4fd1-92da;12661;12661;35200
31/8/2018;2018;Aluminium;7607191090;China;CN;China;df19b54f-0d56-4942-999a;69591;69591;182364
31/8/2018;2018;Aluminium;7601202090;Turkey;TR;Turkey;653c3177-3940-4ba4-9df1;25000;25000;55470
3/9/2018;2018;Aluminium;7601202090;Turkey;TR;Turkey;91cfb80f-51f7-4fd7-bc52;24000;24000;52818
3/9/2018;2018;Aluminium;7601202090;Russian Federation;RU;Russian Federation;d4c7cf12-a54e-4dad-b04e;453421;453421;944285
4/9/2018;2018;Aluminium;7606122090;Turkey;TR;Turkey;4554;7374;7374;23965
4/9/2018;2018;Aluminium;7604109090;Turkey;TR;Turkey;afd6b482-c0f5-4ed0-be7f;19335;19335;64009
4/9/2018;2018;Aluminium;7601202090;Turkey;TR;Turkey;22c5a39f-4df0-4f11-8b52;27000;27000;56288
4/9/2018;2018;Aluminium;7607119087;China;CN;China;4638;144522;144522;433620
5/9/2018;2018;Aluminium;7601202090;South Korea;KR;South Korea;2a13b44a-2cec-49e1-9226;109150;109150;231620
5/9/2018;2018;Aluminium;7601100000;Russian Federation;RU;Russian Federation;b95adacc-f965-4ea4-a92d;262585;262585;503559
5/9/2018;2018;Aluminium;7604299090;China;CN;China;bfd0373c-11c9-4166-9c82;15516;15516;38953
5/9/2018;2018;Aluminium;7616999099;China;CN;China;7af5a9ec-57ca-4e11-9cbd;7106;7106;16332
6/9/2018;2018;Aluminium;7616999099;China;CN;China;05560c63-5f1d-4187-8dc0;43286;43286;126232
6/9/2018;2018;Aluminium;7601202090;Turkey;TR;Turkey;91cfb80f-51f7-4fd7-bc52;23000;23000;50635
6/9/2018;2018;Aluminium;7604299090;China;CN;China;32f797a7-40ce-4fd1-92da;7109;7109;21500
6/9/2018;2018;Aluminium;7601202090;United Arab Emirates;AE;United Arab Emirates;b95adacc-f965-4ea4-a92d;44202;44202;97713
6/9/2018;2018;Aluminium;7601100000;Kazakhstan;KZ;Russian Federation;002b6b2b-3e5e-49f1-ab0b;3077010;3077010;5827670
6/9/2018;2018;Aluminium;7607119087;China;CN;China;4638;16982;16982;53726
6/9/2018;2018;Aluminium;7607111930;China;CN;China;e6d2b797-f86f-42ab-b263;16564;16564;47233
6/9/2018;2018;Aluminium;7607209000;China;CN;China;91ab8476-829c-4e9e-ac53;17365;17365;78935
7/9/2018;2018;Aluminium;7606119390;Serbia;RS;Serbia;f949dccb-2539-44a6-9b26;8369;8369;22592
7/9/2018;2018;Aluminium;7607209000;Turkey;TR;Turkey;4539;5358;5358;19108
7/9/2018;2018;Aluminium;7601202090;Turkey;TR;Turkey;822860bf-a82c-4a25-85f2;35000;35000;74917
7/9/2018;2018;Aluminium;7601202090;South Korea;KR;South Korea;2a13b44a-2cec-49e1-9226;91158;91158;194911
10/9/2018;2018;Aluminium;7601202090;Turkey;TR;Turkey;35;305889;305889;653027
10/9/2018;2018;Aluminium;7606122090;China;CN;China;6a36ec48-5c1e-428a-9319;3907;3907;7128
10/9/2018;2018;Aluminium;7607111910;Turkey;TR;Turkey;4425;30694;30694;93616
10/9/2018;2018;Aluminium;7601202090;United Arab Emirates;AE;United Arab Emirates;4406;111946;111946;236953
10/9/2018;2018;Aluminium;7607111940;Turkey;TR;Turkey;4425;10000;10000;36000
10/9/2018;2018;Aluminium;7607111910;Turkey;TR;Turkey;4425;20000;20000;78000
10/9/2018;2018;Aluminium;7601100000;Mozambique;MZ;Mozambique;4406;23485720;23485720;4,56936E+14
10/9/2018;2018;Aluminium;7606910090;Turkey;TR;Turkey;4425;2840;2840;8009
11/9/2018;2018;Aluminium;7616999099;Turkey;TR;Turkey;ffd9e829-2551-4991-9b2a;2936;2936;13234
11/9/2018;2018;Aluminium;7601202090;United Arab Emirates;AE;United Arab Emirates;4406;505516;505516;990678
12/9/2018;2018;Aluminium;7604299090;China;CN;China;4c99cfaf-38ad-4302-bc83;6560;6560;41899
12/9/2018;2018;Aluminium;7607111993;China;CN;China;007303b8-7a95-4620-ac8d;14161;14161;40904
12/9/2018;2018;Aluminium;7607191090;China;CN;China;df19b54f-0d56-4942-999a;21341;21341;56141
12/9/2018;2018;Aluminium;7601100000;Kazakhstan;KZ;Kazakhstan;002b6b2b-3e5e-49f1-ab0b;24867;24867;48938
13/9/2018;2018;Aluminium;7604109090;Albania;AL;Albania;839ce33e-388b-4f75-bd23;5744;5744;17750
13/9/2018;2018;Aluminium;7601202090;Turkey;TR;Turkey;22c5a39f-4df0-4f11-8b52;27000;27000;58095
13/9/2018;2018;Aluminium;7607111993;Turkey;TR;Turkey;91ab8476-829c-4e9e-ac53;25272;25272;73569
13/9/2018;2018;Aluminium;7607199090;China;CN;China;d75a8205-6f0a-4d65-9d02;5330;5330;22178
13/9/2018;2018;Aluminium;7601100000;Kazakhstan;KZ;Kazakhstan;002b6b2b-3e5e-49f1-ab0b;101108;101108;231542
13/9/2018;2018;Aluminium;7601100000;Russian Federation;RU;Russian Federation;002b6b2b-3e5e-49f1-ab0b;50430;50430;101112
14/9/2018;2018;Aluminium;7609000090;Turkey;TR;Turkey;95a12de3-fbaa-4164-baf1;30000;30000;150000
14/9/2018;2018;Aluminium;7604101000;Turkey;TR;Turkey;95a12de3-fbaa-4164-baf1;10000;10000;90000
14/9/2018;2018;Aluminium;7609000090;Turkey;TR;Turkey;95a12de3-fbaa-4164-baf1;30000;30000;120000
14/9/2018;2018;Aluminium;7604101000;Turkey;TR;Turkey;95a12de3-fbaa-4164-baf1;50000;50000;195000
14/9/2018;2018;Aluminium;7606119190;China;CN;China;3d2eb5bb-1c4d-4db6-97fd;8400;8400;11787
14/9/2018;2018;Aluminium;7608208990;China;CN;China;2363;5881;5881;19433
14/9/2018;2018;Aluminium;7601202090;United Arab Emirates;AE;United Arab Emirates;13eb6fa1-3e7a-4871-8554;340596;340596;738902
17/9/2018;2018;Aluminium;7601208000;China;CN;China;13e242ef-91c8-4421-99a2;24061;24061;69486
17/9/2018;2018;Aluminium;7605110000;Turkey;TR;Turkey;4539;71852;71852;159203
17/9/2018;2018;Aluminium;7601202090;Turkey;TR;Turkey;822860bf-a82c-4a25-85f2;35000;35000;72836
17/9/2018;2018;Aluminium;7604299030;China;CN;China;4602;13227;13227;46972
18/9/2018;2018;Aluminium;7604299090;China;CN;China;bfd0373c-11c9-4166-9c82;15345;15345;38335
19/9/2018;2018;Aluminium;7606129390;China;CN;China;4425;4060;4060;10028
19/9/2018;2018;Aluminium;7606119390;China;CN;China;4425;5918;5918;12131
19/9/2018;2018;Aluminium;7606910090;China;CN;China;4425;11541;11541;23659
19/9/2018;2018;Aluminium;7601202090;Russian Federation;RU;Russian Federation;d4c7cf12-a54e-4dad-b04e;367746;367746;765860
19/9/2018;2018;Aluminium;7606129990;Turkey;TR;Turkey;5fa67e9a-765c-4026-9778;50000;50000;125200
20/9/2018;2018;Aluminium;7601202090;Russian Federation;RU;Russian Federation;4406;461560;461560;1019269
21/9/2018;2018;Aluminium;7616999099;Bosnia and Herzegovina;BA;Bosnia and Herzegovina;27228672-620e-4104-8c91;3030;3030;14505
21/9/2018;2018;Aluminium;7608208990;Turkey;TR;Turkey;a44a1f3c-828b-4b30-bb42;3131;3131;11002
21/9/2018;2018;Aluminium;7601202090;Turkey;TR;Turkey;22c5a39f-4df0-4f11-8b52;27000;27000;54594
21/9/2018;2018;Aluminium;7601202090;United Arab Emirates;AE;United Arab Emirates;13eb6fa1-3e7a-4871-8554;291260;291260;628523
24/9/2018;2018;Aluminium;7616999099;Turkey;TR;Turkey;9c34b988-4bb3-4b9f-a2f5;12314;12314;20967
24/9/2018;2018;Aluminium;7604299090;Turkey;TR;Turkey;ca33b13f-1efa-4805-aba4;11494;11494;49577
24/9/2018;2018;Aluminium;7604299090;Turkey;TR;Turkey;35;4652;4652;16082
24/9/2018;2018;Aluminium;7601202090;Egypt;EG;Egypt;35;343867;343867;760596
24/9/2018;2018;Aluminium;7601202090;Turkey;TR;Turkey;653c3177-3940-4ba4-9df1;23460;23460;50650
25/9/2018;2018;Aluminium;7604109090;Albania;AL;Albania;b95adacc-f965-4ea4-a92d;3390;3390;14098
25/9/2018;2018;Aluminium;7604299090;China;CN;China;b9dc2d7b-0dc2-4334-8cbd;3577;3577;12348
25/9/2018;2018;Aluminium;7607191090;China;CN;China;df19b54f-0d56-4942-999a;34544;34544;89636
25/9/2018;2018;Aluminium;7604299090;China;CN;China;bfd0373c-11c9-4166-9c82;16288;16288;40639
25/9/2018;2018;Aluminium;7607209000;Turkey;TR;Turkey;4539;3522;3522;12483
26/9/2018;2018;Aluminium;7607111993;Turkey;TR;Turkey;91ab8476-829c-4e9e-ac53;3690;3690;10682
26/9/2018;2018;Aluminium;7601202090;Turkey;TR;Turkey;13eb6fa1-3e7a-4871-8554;24000;24000;51493
27/9/2018;2018;Aluminium;7601100000;Kazakhstan;KZ;Kazakhstan;35;337346;337346;645005
27/9/2018;2018;Aluminium;7601202090;Russian Federation;RU;Russian Federation;2a13b44a-2cec-49e1-9226;339975;339975;671559
27/9/2018;2018;Aluminium;7601100000;Kazakhstan;KZ;Russian Federation;002b6b2b-3e5e-49f1-ab0b;1138553;1138553;2146924
28/9/2018;2018;Aluminium;7601100000;Montenegro;ME;Montenegro;b95adacc-f965-4ea4-a92d;350000;350000;700612
28/9/2018;2018;Aluminium;7605110000;Turkey;TR;Turkey;4554;300000;300000;636000
28/9/2018;2018;Aluminium;7601202090;Turkey;TR;Turkey;91cfb80f-51f7-4fd7-bc52;23000;23000;48583
28/9/2018;2018;Aluminium;7606122090;Turkey;TR;Turkey;4554;4610;4610;15048
28/9/2018;2018;Aluminium;7607209000;Turkey;TR;Turkey;4554;3954;3954;12985
1/10/2018;2018;Aluminium;7601202090;United Arab Emirates;AE;United Arab Emirates;76815dd5-7e2f-450e-b9d5;689856;689856;1432448
2/10/2018;2018;Aluminium;7604299090;Turkey;TR;Turkey;a107f890-0275-4b1f-8f21;8085;8085;24917
2/10/2018;2018;Aluminium;7601202090;South Korea;KR;South Korea;2a13b44a-2cec-49e1-9226;90867;90867;190355
2/10/2018;2018;Aluminium;7601202090;Qatar;QA;Qatar;b95adacc-f965-4ea4-a92d;191150;191150;392027
2/10/2018;2018;Aluminium;7607209000;Turkey;TR;Turkey;4554;6504;6504;25372
3/10/2018;2018;Aluminium;7607111930;China;CN;China;e6d2b797-f86f-42ab-b263;18549;18549;52456
3/10/2018;2018;Aluminium;7601100000;Kazakhstan;KZ;Kazakhstan;002b6b2b-3e5e-49f1-ab0b;119821;119821;247269
4/10/2018;2018;Aluminium;7604101000;Serbia;RS;Serbia;5f234db8-fc7e-4a13-8028;12682;12682;47170
4/10/2018;2018;Aluminium;7601202090;Vietnam;VN;Vietnam;2a13b44a-2cec-49e1-9226;248586;248586;490047
4/10/2018;2018;Aluminium;7601202090;Turkey;TR;Turkey;22c5a39f-4df0-4f11-8b52;27000;27000;57024
5/10/2018;2018;Aluminium;7604299090;Turkey;TR;Turkey;35a6c8cb-0b91-498c-a7b5;2764;2764;13736
5/10/2018;2018;Aluminium;7606129290;China;CN;China;4638;330041;330041;741379
5/10/2018;2018;Aluminium;7601202090;Turkey;TR;Turkey;653c3177-3940-4ba4-9df1;25000;25000;57632
5/10/2018;2018;Aluminium;7607209000;Turkey;TR;Turkey;4554;16050;16050;52162
5/10/2018;2018;Aluminium;7607111993;Turkey;TR;Turkey;91ab8476-829c-4e9e-ac53;21790;21790;65089
5/10/2018;2018;Aluminium;7601100000;Russian Federation;RU;Russian Federation;4406;185120;185120;398939
5/10/2018;2018;Aluminium;7601202090;Russian Federation;RU;Russian Federation;4406;795740;795740;1756372
8/10/2018;2018;Aluminium;7601202090;Turkey;TR;Turkey;35;305814;305814;646405
9/10/2018;2018;Aluminium;7604109090;Turkey;TR;Turkey;afd6b482-c0f5-4ed0-be7f;16445;16445;58184
9/10/2018;2018;Aluminium;7601202090;Turkey;TR;Turkey;822860bf-a82c-4a25-85f2;45000;45000;103331
9/10/2018;2018;Aluminium;7604101000;Serbia;RS;Serbia;5f234db8-fc7e-4a13-8028;5958;5958;19810
9/10/2018;2018;Aluminium;7616999099;Turkey;TR;Turkey;4713;7151;7151;35688
10/10/2018;2018;Aluminium;7604299090;China;CN;China;32f797a7-40ce-4fd1-92da;19472;19472;57900
12/10/2018;2018;Aluminium;7604299090;China;CN;China;bfd0373c-11c9-4166-9c82;14570;14570;36979
12/10/2018;2018;Aluminium;7604109090;Turkey;TR;Turkey;4653;3396;3396;11800
15/10/2018;2018;Aluminium;7607191090;China;CN;China;df19b54f-0d56-4942-999a;111972;111972;295437
15/10/2018;2018;Aluminium;7601202090;Egypt;EG;Egypt;35;350791;350791;768818
15/10/2018;2018;Aluminium;7601100000;Russian Federation;RU;Russian Federation;4406;495660;495660;965268
15/10/2018;2018;Aluminium;7601100000;Russian Federation;RU;Russian Federation;002b6b2b-3e5e-49f1-ab0b;25215;25215;50833
15/10/2018;2018;Aluminium;7601100000;Russian Federation;RU;Russian Federation;4406;3834490;3834490;7678048
15/10/2018;2018;Aluminium;7601202090;Russian Federation;RU;Russian Federation;4406;14822770;14822770;2,38107E+14
15/10/2018;2018;Aluminium;7604299090;Turkey;TR;Turkey;35;2661;2661;9696
16/10/2018;2018;Aluminium;7606910090;Turkey;TR;Turkey;4425;12000;12000;23858
16/10/2018;2018;Aluminium;7605110000;Turkey;TR;Turkey;4539;73679;73679;163252
16/10/2018;2018;Aluminium;7601202090;United Arab Emirates;AE;United Arab Emirates;4406;803809;803809;1613393
16/10/2018;2018;Aluminium;7601202090;Turkey;TR;Turkey;22c5a39f-4df0-4f11-8b52;27000;27000;56488
16/10/2018;2018;Aluminium;7616991099;China;CN;China;4063;4495;4495;19762
17/10/2018;2018;Aluminium;7606920090;Turkey;TR;Turkey;4053;7987;7987;25660
17/10/2018;2018;Aluminium;7616999099;Turkey;TR;Turkey;afd6b482-c0f5-4ed0-be7f;2928;2928;16797
18/10/2018;2018;Aluminium;7607111993;Turkey;TR;Turkey;91ab8476-829c-4e9e-ac53;50595;50595;147877
18/10/2018;2018;Aluminium;7601100000;Montenegro;ME;Montenegro;b95adacc-f965-4ea4-a92d;355000;355000;704675
18/10/2018;2018;Aluminium;7601202090;South Korea;KR;South Korea;2a13b44a-2cec-49e1-9226;196452;196452;417123
18/10/2018;2018;Aluminium;7606119190;Turkey;TR;Turkey;4425;24904;24904;67739
18/10/2018;2018;Aluminium;7606119390;Turkey;TR;Turkey;4425;22534;22534;61292
19/10/2018;2018;Aluminium;7601202090;United Arab Emirates;AE;United Arab Emirates;13eb6fa1-3e7a-4871-8554;289324;289324;633801
19/10/2018;2018;Aluminium;7606129390;China;CN;China;bbd52968-3ef5-4129-baa5;4300;4300;7734
22/10/2018;2018;Aluminium;7601202090;Vietnam;VN;Vietnam;b95adacc-f965-4ea4-a92d;896280;896280;1754790
23/10/2018;2018;Aluminium;7604210090;China;CN;China;eb742aca-9be5-4fd5-b63c;5400;5400;11022
23/10/2018;2018;Aluminium;7604109090;Turkey;TR;Turkey;afd6b482-c0f5-4ed0-be7f;4960;4960;17186
23/10/2018;2018;Aluminium;7616999099;China;CN;China;61842fd9-da11-43fe-9fe6;4328;4328;16949
23/10/2018;2018;Aluminium;7604299090;China;CN;China;32f797a7-40ce-4fd1-92da;24519;24519;68000
24/10/2018;2018;Aluminium;7604299090;China;CN;China;32f797a7-40ce-4fd1-92da;4905;4905;13000
24/10/2018;2018;Aluminium;7601202090;Turkey;TR;Turkey;22c5a39f-4df0-4f11-8b52;27000;27000;55393
24/10/2018;2018;Aluminium;7601202090;Turkey;TR;Turkey;22c5a39f-4df0-4f11-8b52;27000;27000;55393
25/10/2018;2018;Aluminium;7604299090;China;CN;China;bfd0373c-11c9-4166-9c82;15362;15362;38342
25/10/2018;2018;Aluminium;7601100000;Kazakhstan;KZ;Russian Federation;35;535953;535953;1003261
25/10/2018;2018;Aluminium;7601100000;Kazakhstan;KZ;Russian Federation;002b6b2b-3e5e-49f1-ab0b;1140093;1140093;2149828
25/10/2018;2018;Aluminium;7601100000;Kazakhstan;KZ;Russian Federation;35;335953;335953;628877
25/10/2018;2018;Aluminium;7607111993;China;CN;China;4638;207442;207442;620718
25/10/2018;2018;Aluminium;7607111930;China;CN;China;e6d2b797-f86f-42ab-b263;17552;17552;49859
26/10/2018;2018;Aluminium;7601208000;Egypt;EG;Egypt;1955;50000;50000;82260
26/10/2018;2018;Aluminium;7601202090;Turkey;TR;Turkey;c9fdef34-7d90-43cf-b1af;23000;23000;49647
26/10/2018;2018;Aluminium;7607191090;China;CN;China;df19b54f-0d56-4942-999a;38228;38228;102454
26/10/2018;2018;Aluminium;7601202090;Turkey;TR;Turkey;822860bf-a82c-4a25-85f2;35000;35000;73605
26/10/2018;2018;Aluminium;7606129290;China;CN;China;4406;29976;29976;72975
29/10/2018;2018;Aluminium;7607111993;Turkey;TR;Turkey;91ab8476-829c-4e9e-ac53;20000;20000;60000
30/10/2018;2018;Aluminium;7604299090;Turkey;TR;Turkey;302e4a04-f90b-45a6-b2c1;11747;11747;40884
30/10/2018;2018;Aluminium;7604299090;Albania;AL;Albania;35;34266;34266;111604
30/10/2018;2018;Aluminium;7605110000;Turkey;TR;Turkey;4539;95962;95962;212624
30/10/2018;2018;Aluminium;7616999099;Turkey;TR;Turkey;9c34b988-4bb3-4b9f-a2f5;13020;13020;35514
30/10/2018;2018;Aluminium;7604299030;China;CN;China;4602;20762;20762;67907
30/10/2018;2018;Aluminium;7601202090;Turkey;TR;Turkey;b95adacc-f965-4ea4-a92d;303698;303698;682421
31/10/2018;2018;Aluminium;7604299090;Serbia;RS;Serbia;35;23875;23875;92663
31/10/2018;2018;Aluminium;7609000090;Turkey;TR;Turkey;29390636-5864-4cd0-96ab;14110;14110;47691
31/10/2018;2018;Aluminium;7601100000;Russian Federation;RU;Russian Federation;002b6b2b-3e5e-49f1-ab0b;141204;141204;283396
1/11/2018;2018;Aluminium;7607111993;Turkey;TR;Turkey;91ab8476-829c-4e9e-ac53;20000;20000;60160
1/11/2018;2018;Aluminium;7607191090;China;CN;China;df19b54f-0d56-4942-999a;39721;39721;98048
2/11/2018;2018;Aluminium;7604291090;Turkey;TR;Turkey;5ac78611-87f6-4965-a873;3806;3806;15530
2/11/2018;2018;Aluminium;7607209000;Turkey;TR;Turkey;4554;12078;12078;39615
5/11/2018;2018;Aluminium;7607209000;Turkey;TR;Turkey;4554;22620;22620;74646
5/11/2018;2018;Aluminium;7606910090;Turkey;TR;Turkey;1c27cbb2-25a8-49ae-ae4b;16272;16272;46723
5/11/2018;2018;Aluminium;7601202090;United Arab Emirates;AE;United Arab Emirates;76815dd5-7e2f-450e-b9d5;689767;689767;1443434
6/11/2018;2018;Aluminium;7607111993;Turkey;TR;Turkey;91ab8476-829c-4e9e-ac53;15389;15389;44657
6/11/2018;2018;Aluminium;7604299090;Turkey;TR;Turkey;9cd0124f-dcc8-4472-be0e;3369;3369;13821
6/11/2018;2018;Aluminium;7607209000;Turkey;TR;Turkey;4539;4420;4420;15091
6/11/2018;2018;Aluminium;7601202090;Turkey;TR;Turkey;91cfb80f-51f7-4fd7-bc52;22410;22410;47576
6/11/2018;2018;Aluminium;7604109090;Turkey;TR;Turkey;4653;3634;3634;12200
6/11/2018;2018;Aluminium;7607111993;China;CN;China;4638;224644;224644;674700
6/11/2018;2018;Aluminium;7601202090;South Korea;KR;South Korea;2a13b44a-2cec-49e1-9226;90596;90596;193601
7/11/2018;2018;Aluminium;7601202090;South Korea;KR;South Korea;2a13b44a-2cec-49e1-9226;197970;197970;423058
7/11/2018;2018;Aluminium;7601202090;United Arab Emirates;AE;United Arab Emirates;4406;802997;802997;1590271
7/11/2018;2018;Aluminium;7608208990;Turkey;TR;Turkey;a44a1f3c-828b-4b30-bb42;3945;3945;12727
7/11/2018;2018;Aluminium;7606129990;Turkey;TR;Turkey;5fa67e9a-765c-4026-9778;40000;40000;98800
7/11/2018;2018;Aluminium;7601100000;Russian Federation;RU;Russian Federation;002b6b2b-3e5e-49f1-ab0b;50430;50430;101668
8/11/2018;2018;Aluminium;7601100000;Bahrain;BH;Bahrain;4406;275196;275196;581690
8/11/2018;2018;Aluminium;7606119190;China;CN;China;4638;175634;175634;390287
9/11/2018;2018;Aluminium;7601202090;India;IN;India;1955;24705;24705;39475
9/11/2018;2018;Aluminium;7605110000;Turkey;TR;Turkey;4539;72519;72519;167166
9/11/2018;2018;Aluminium;7607111110;China;CN;China;95f0ccfe-4301-427d-8fee;19689;19689;62416
12/11/2018;2018;Aluminium;7601202090;Turkey;TR;Turkey;822860bf-a82c-4a25-85f2;35000;35000;72647
12/11/2018;2018;Aluminium;7606119190;Turkey;TR;Turkey;4425;80000;80000;200000
12/11/2018;2018;Aluminium;7606119390;Turkey;TR;Turkey;4425;30000;30000;75000
12/11/2018;2018;Aluminium;7601202090;Turkey;TR;Turkey;35;305770;305770;646783
13/11/2018;2018;Aluminium;7601100000;Russian Federation;RU;Russian Federation;002b6b2b-3e5e-49f1-ab0b;50430;50430;101666
14/11/2018;2018;Aluminium;7604109090;Turkey;TR;Turkey;afd6b482-c0f5-4ed0-be7f;16685;16685;54522
15/11/2018;2018;Aluminium;7601202090;Turkey;TR;Turkey;22c5a39f-4df0-4f11-8b52;27531;27531;57187
15/11/2018;2018;Aluminium;7607119087;China;CN;China;4638;61818;61818;138574
19/11/2018;2018;Aluminium;7616999099;China;CN;China;cabb2a44-82c9-411c-98fb;20464;20464;63777
19/11/2018;2018;Aluminium;7604299090;China;CN;China;c9883bcb-9933-45e6-a8cb;3290;3290;18036
19/11/2018;2018;Aluminium;7601202090;South Korea;KR;South Korea;91cfb80f-51f7-4fd7-bc52;111660;111660;243318
20/11/2018;2018;Aluminium;7601202090;Qatar;QA;Qatar;b95adacc-f965-4ea4-a92d;190522;190522;394260
20/11/2018;2018;Aluminium;7607111993;Turkey;TR;Turkey;91ab8476-829c-4e9e-ac53;12483;12483;36425
20/11/2018;2018;Aluminium;7601202090;Turkey;TR;Turkey;13eb6fa1-3e7a-4871-8554;60000;60000;123781
20/11/2018;2018;Aluminium;7604109090;Albania;AL;Albania;b95adacc-f965-4ea4-a92d;2979;2979;12283
20/11/2018;2018;Aluminium;7606129290;China;CN;China;d4c7cf12-a54e-4dad-b04e;14420;14420;21823
21/11/2018;2018;Aluminium;7606122090;Turkey;TR;Turkey;27;66000;66000;217800
21/11/2018;2018;Aluminium;7606129990;Turkey;TR;Turkey;27;66000;66000;159720
21/11/2018;2018;Aluminium;7607191090;China;CN;China;df19b54f-0d56-4942-999a;60255;60255;152125
21/11/2018;2018;Aluminium;7616999099;Turkey;TR;Turkey;afd6b482-c0f5-4ed0-be7f;3161;3161;20886
21/11/2018;2018;Aluminium;7607111993;Turkey;TR;Turkey;91ab8476-829c-4e9e-ac53;20000;20000;59960
21/11/2018;2018;Aluminium;7606122090;Turkey;TR;Turkey;4554;4199;4199;13595
21/11/2018;2018;Aluminium;7607209000;Turkey;TR;Turkey;4554;12406;12406;39947
22/11/2018;2018;Aluminium;7607111993;Turkey;TR;Turkey;91ab8476-829c-4e9e-ac53;20726;20726;60478
22/11/2018;2018;Aluminium;7608208990;China;CN;China;2363;5713;5713;19064
23/11/2018;2018;Aluminium;7606122090;Serbia;RS;Serbia;4425;20979;20979;63819
23/11/2018;2018;Aluminium;7607111993;Turkey;TR;Turkey;91ab8476-829c-4e9e-ac53;20000;20000;60160
23/11/2018;2018;Aluminium;7616999099;Bosnia and Herzegovina;BA;Bosnia and Herzegovina;27228672-620e-4104-8c91;4883;4883;24094
23/11/2018;2018;Aluminium;7601202090;Turkey;TR;Turkey;22c5a39f-4df0-4f11-8b52;27000;27000;53682
26/11/2018;2018;Aluminium;7606129290;China;CN;China;4638;324176;324176;777996
26/11/2018;2018;Aluminium;7607111993;China;CN;China;4638;171234;171234;502479
26/11/2018;2018;Aluminium;7604109090;Turkey;TR;Turkey;afd6b482-c0f5-4ed0-be7f;5160;5160;15921
26/11/2018;2018;Aluminium;7608208990;Turkey;TR;Turkey;a44a1f3c-828b-4b30-bb42;4421;4421;14805
26/11/2018;2018;Aluminium;7601202090;Turkey;TR;Turkey;822860bf-a82c-4a25-85f2;35000;35000;71165
27/11/2018;2018;Aluminium;7607199090;China;CN;China;f9707ef7-999e-42bc-b536;19202;19202;43547
27/11/2018;2018;Aluminium;7601100000;Russian Federation;RU;Russian Federation;002b6b2b-3e5e-49f1-ab0b;2142000;2142000;3891207
27/11/2018;2018;Aluminium;7616999099;Turkey;TR;Turkey;4713;13508;13508;66419
27/11/2018;2018;Aluminium;7601202090;Turkey;TR;Turkey;c69d8d8a-479e-42e6-8953;27500;27500;57034
27/11/2018;2018;Aluminium;7601100000;Russian Federation;RU;Russian Federation;35;943082;943082;1774776
27/11/2018;2018;Aluminium;7601100000;Russian Federation;RU;Russian Federation;b95adacc-f965-4ea4-a92d;356506;356506;644694
27/11/2018;2018;Aluminium;7604210090;Turkey;TR;Turkey;8c3da6aa-30ba-4add-9193;38143;38143;134772
28/11/2018;2018;Aluminium;7607209000;Turkey;TR;Turkey;4554;7285;7285;24332
28/11/2018;2018;Aluminium;7604299090;Turkey;TR;Turkey;29390636-5864-4cd0-96ab;6147;6147;21202
28/11/2018;2018;Aluminium;7607119087;India;IN;India;face4a99-a9e0-4bea-9b3a;15000;15000;68250
28/11/2018;2018;Aluminium;7604101000;Serbia;RS;Serbia;5f234db8-fc7e-4a13-8028;3679;3679;10534
28/11/2018;2018;Aluminium;7604299090;Turkey;TR;Turkey;a0eb6135-b8ae-4bcf-a2b6;2847;2847;8956
29/11/2018;2018;Aluminium;7604299090;China;CN;China;bfd0373c-11c9-4166-9c82;15683;15683;39330
29/11/2018;2018;Aluminium;7607209000;Turkey;TR;Turkey;4554;11348;11348;36540
30/11/2018;2018;Aluminium;7601202090;Turkey;TR;Turkey;2a13b44a-2cec-49e1-9226;47234;47234;106136
30/11/2018;2018;Aluminium;7604101000;Serbia;RS;Serbia;5f234db8-fc7e-4a13-8028;13351;13351;46455
3/12/2018;2018;Aluminium;7601202090;Egypt;EG;Egypt;35;351202;351202;755481
3/12/2018;2018;Aluminium;7601208000;Vietnam;VN;Vietnam;1955;100505;100505;169876
3/12/2018;2018;Aluminium;7601208000;Egypt;EG;Egypt;1955;50000;50000;75766
4/12/2018;2018;Aluminium;7604299090;Turkey;TR;Turkey;ac060574-7537-405e-8715;5055;5055;18556
4/12/2018;2018;Aluminium;7604109090;Albania;AL;Albania;839ce33e-388b-4f75-bd23;3677;3677;11361
4/12/2018;2018;Aluminium;7607111910;Turkey;TR;Turkey;4425;40000;40000;128000
4/12/2018;2018;Aluminium;7607119087;Turkey;TR;Turkey;4425;40000;40000;142000
4/12/2018;2018;Aluminium;7604210090;Turkey;TR;Turkey;8c3da6aa-30ba-4add-9193;28834;28834;93063
5/12/2018;2018;Aluminium;7601202090;Turkey;TR;Turkey;22c5a39f-4df0-4f11-8b52;27000;27000;55223
5/12/2018;2018;Aluminium;7601202090;United Arab Emirates;AE;United Arab Emirates;13eb6fa1-3e7a-4871-8554;194140;194140;419256
6/12/2018;2018;Aluminium;7601202090;United Arab Emirates;AE;United Arab Emirates;76815dd5-7e2f-450e-b9d5;689660;689660;1417887
6/12/2018;2018;Aluminium;7607191090;China;CN;China;df19b54f-0d56-4942-999a;97595;97595;246987
6/12/2018;2018;Aluminium;7601202090;United Arab Emirates;AE;United Arab Emirates;4406;463254;463254;876451
7/12/2018;2018;Aluminium;7601202090;Turkey;TR;Turkey;822860bf-a82c-4a25-85f2;35000;35000;72450
10/12/2018;2018;Aluminium;7607111993;China;CN;China;4638;355075;355075;800194
10/12/2018;2018;Aluminium;7606920090;Turkey;TR;Turkey;bbcf54fb-061e-4142-a8d0;13000;13000;31837
10/12/2018;2018;Aluminium;7601202090;South Korea;KR;South Korea;2a13b44a-2cec-49e1-9226;197464;197464;409625
10/12/2018;2018;Aluminium;7604299090;Turkey;TR;Turkey;35;7026;7026;24508
10/12/2018;2018;Aluminium;7607111930;China;CN;China;e6d2b797-f86f-42ab-b263;17216;17216;50746
10/12/2018;2018;Aluminium;7607111993;Turkey;TR;Turkey;91ab8476-829c-4e9e-ac53;23328;23328;65153
10/12/2018;2018;Aluminium;7601202090;South Korea;KR;South Korea;2a13b44a-2cec-49e1-9226;108559;108559;225198
10/12/2018;2018;Aluminium;7606119190;China;CN;China;4638;274926;274926;602981
11/12/2018;2018;Aluminium;7601202090;Azerbaijan;AZ;Azerbaijan;35;154950;154950;314297
12/12/2018;2018;Aluminium;7604299090;Turkey;TR;Turkey;ac060574-7537-405e-8715;10660;10660;39813
12/12/2018;2018;Aluminium;7604210090;China;CN;China;4c99cfaf-38ad-4302-bc83;4530;4530;30305
12/12/2018;2018;Aluminium;7601202090;India;IN;India;b95adacc-f965-4ea4-a92d;101552;101552;198958
12/12/2018;2018;Aluminium;7601202090;United Arab Emirates;AE;United Arab Emirates;4406;30914;30914;58487
12/12/2018;2018;Aluminium;7604299090;China;CN;China;9cd0124f-dcc8-4472-be0e;13783;13783;37985
12/12/2018;2018;Aluminium;7601202090;Turkey;TR;Turkey;22c5a39f-4df0-4f11-8b52;27000;27000;54711
12/12/2018;2018;Aluminium;7601100000;Kazakhstan;KZ;Kazakhstan;002b6b2b-3e5e-49f1-ab0b;48694;48694;99662
13/12/2018;2018;Aluminium;7607111110;Turkey;TR;Turkey;c026c2e8-149f-486c-9394;10000;10000;35250
14/12/2018;2018;Aluminium;7604299090;Turkey;TR;Turkey;35a6c8cb-0b91-498c-a7b5;2850;2850;14816
14/12/2018;2018;Aluminium;7607111993;Turkey;TR;Turkey;91ab8476-829c-4e9e-ac53;18622;18622;54339
14/12/2018;2018;Aluminium;7616999099;China;CN;China;815109f0-9ecd-4d19-863c;16769;16769;43022
17/12/2018;2018;Aluminium;7606129990;China;CN;Germany;5fa67e9a-765c-4026-9778;20915;20915;59189
18/12/2018;2018;Aluminium;7606119390;Turkey;TR;Turkey;4425;100000;100000;245000
18/12/2018;2018;Aluminium;7606119190;Turkey;TR;Turkey;4425;100000;100000;245000
18/12/2018;2018;Aluminium;7604109090;Albania;AL;Albania;b95adacc-f965-4ea4-a92d;3477;3477;16521
19/12/2018;2018;Aluminium;7616999099;Turkey;TR;Turkey;6e20515f-282f-4d3c-bf7f;3348;3348;20248
19/12/2018;2018;Aluminium;7601202090;Turkey;TR;Turkey;35;607799;607799;1266671
19/12/2018;2018;Aluminium;7607209000;Turkey;TR;Turkey;4554;15760;15760;50747
19/12/2018;2018;Aluminium;7606122090;Turkey;TR;Turkey;4554;5365;5365;17275
20/12/2018;2018;Aluminium;7606910090;United States of America;US;United States of America;3187c9e8-4c09-4f18-b7e9;4178;4178;40719
20/12/2018;2018;Aluminium;7604109090;Turkey;TR;Turkey;afd6b482-c0f5-4ed0-be7f;5727;5727;18783
21/12/2018;2018;Aluminium;7609000090;China;CN;China;31817fb1-2879-4251-92e9;9069;9069;62417
21/12/2018;2018;Aluminium;7601202090;Turkey;TR;Turkey;822860bf-a82c-4a25-85f2;35000;35000;72450
21/12/2018;2018;Aluminium;7607111110;Turkey;TR;Turkey;95f0ccfe-4301-427d-8fee;200000;200000;612000
21/12/2018;2018;Aluminium;7607209000;Turkey;TR;Turkey;4554;18928;18928;62462
24/12/2018;2018;Aluminium;7606122090;Turkey;TR;Turkey;4554;11048;11048;35621
24/12/2018;2018;Aluminium;7607209000;Turkey;TR;Turkey;4554;12099;12099;39027
24/12/2018;2018;Aluminium;7616999099;China;CN;China;61842fd9-da11-43fe-9fe6;5369;5369;21278
28/12/2018;2018;Aluminium;7607191090;China;CN;China;df19b54f-0d56-4942-999a;55396;55396;133903
28/12/2018;2018;Aluminium;7606119190;China;CN;China;4425;38025;38025;74529
28/12/2018;2018;Aluminium;7606119390;China;CN;China;4425;9895;9895;19394
31/12/2018;2018;Aluminium;7606122090;Turkey;TR;Turkey;4554;2779;2779;9032
31/12/2018;2018;Aluminium;7607209000;Turkey;TR;Turkey;4554;20226;20226;65735
31/12/2018;2018;Aluminium;7605110000;India;IN;India;4539;21880;21880;43843
31/12/2018;2018;Aluminium;7604299090;Turkey;TR;Turkey;8c3da6aa-30ba-4add-9193;7100;7100;20250
